fUSD/lending_fUSD_20240210
["ID","MTS","AMOUNT","RATE_DAILY","PERIOD"]
[313701133,1707595857075,-1831.78,0.000381,3]
[313701134,1707595857084,-1831.78,0.000381,3]
[313701135,1707595857093,-1831.78,0.000381,3]
[313701136,1707595857102,-1831.78,0.000381,3]
[313701137,1707595857111,-1831.78,0.000381,3]
[313701138,1707595857121,-1831.78,0.000381,3]
[313701139,1707595857130,-1831.78,0.000381,3]
[313701140,1707595857139,-1831.78,0.000381,3]
[313701141,1707595857149,-1831.78,0.000381,3]
[313701142,1707595857158,-1831.78,0.000381,3]
[313701143,1707595857168,-1831.78,0.000381,3]
[313701144,1707595857177,-1831.78,0.000381,3]
[313701145,1707595857186,-1831.78,0.000381,3]
[313701146,1707595857195,-1831.78,0.000381,3]
[313701147,1707595857204,-1831.78,0.000381,3]
[313701148,1707595857213,-1831.78,0.000381,3]
[313701149,1707595857222,-1831.78,0.000381,3]
[313701150,1707595857232,-1831.78,0.000381,3]
[313701151,1707595857242,-1831.78,0.000381,3]
[313701152,1707595857251,-155.97785463,0.00038131,7]
[313701153,1707595857261,-172.72830048,0.00038175,7]
[313701154,1707595857270,-421.67276894,0.00038186,7]
[313701155,1707595857280,-150.51389881,0.00038194,7]
[313701156,1707595857289,-150.0,0.00038212,2]
[313701157,1707595857298,-10916.49,0.00038219,2]
[313701158,1707595857307,-172.72830048,0.00038229,7]
[313701159,1707595857316,-152.20144922,0.00038231,7]
[313701160,1707595857325,-10000.0,0.0003824,28]
[313701161,1707595857334,-305.44,0.00038275,2]
[313701162,1707595857344,-286.11,0.000383,7]
[313701163,1707595857354,-6576.17714989,0.00038308,2]
[313701164,1707595857365,-6265.55,0.00038317,7]
[313701165,1707595857374,-6265.55,0.00038317,7]
[313701166,1707595857384,-166.7965836,0.00038327,7]
[313701167,1707595857393,-150.51389881,0.00038338,7]
[313701168,1707595857402,-150.51389881,0.0003835,7]
[313701169,1707595857412,-10000.0,0.00038352,2]
[313701170,1707595857422,-14515.14,0.00038356,14]
[313701171,1707595857431,-500.0,0.00038356,30]
[313701172,1707595857440,-500.0,0.00038356,30]
[313701173,1707595857450,-500.0,0.00038356,30]
[313701174,1707595857460,-636.08,0.00038356,30]
[313701175,1707595857470,-500.0,0.00038356,30]
[313701176,1707595857479,-500.0,0.00038356,30]
[313701177,1707595857488,-500.0,0.00038356,30]
[313701178,1707595857497,-500.0,0.00038356,30]
[313701179,1707595857506,-544.39411301,0.00038356,30]
[313701180,1707595857515,-500.0,0.00038356,30]
[313701181,1707595857524,-592.39,0.00038356,2]
[313701182,1707595857534,-500.0,0.00038356,30]
[313701183,1707595857544,-617.86,0.00038356,30]
[313701184,1707595857553,-500.0,0.00038356,30]
[313701185,1707595857563,-500.0,0.00038356,30]
[313701186,1707595857572,-500.0,0.00038356,30]
[313701187,1707595857581,-500.0,0.00038356,30]
[313701188,1707595857591,-500.0,0.00038356,30]
[313701189,1707595857602,-500.0,0.00038356,30]
[313701190,1707595857612,-505.72487618,0.00038356,30]
[313701191,1707595857624,-705.9,0.00038356,30]
[313701192,1707595857634,-205.95707774,0.00038356,30]
[313701193,1707595857642,-500.0,0.00038356,30]
[313701194,1707595857651,-500.0,0.00038356,30]
[313701195,1707595857661,-500.0,0.00038356,30]
[313701196,1707595857670,-500.0,0.00038356,30]
[313701197,1707595857681,-500.0,0.00038356,30]
[313701198,1707595857692,-500.0,0.00038356,30]
[313701199,1707595857701,-1004.11719576,0.00038356,2]
[313701200,1707595857712,-765.85,0.00038356,30]
[313701201,1707595857721,-173.70569023,0.00038356,30]
[313701202,1707595857730,-200.39327457,0.00038356,9]
[313701203,1707595857740,-503.21473422,0.00038356,30]
[313701204,1707595857749,-500.0,0.00038356,30]
[313701205,1707595857758,-509.28875317,0.00038356,30]
[313701206,1707595857767,-500.0,0.00038356,30]
[313701207,1707595857776,-500.0,0.00038356,30]
[313701208,1707595857785,-501.10386128,0.00038356,30]
[313701209,1707595857794,-532.18825212,0.00038356,30]
[313701210,1707595857803,-512.8400166,0.00038356,30]
[313701211,1707595857813,-500.0,0.00038356,30]
[313701212,1707595857823,-500.0,0.00038356,30]
[313701213,1707595857833,-500.0,0.00038356,30]
[313701214,1707595857843,-500.0,0.00038356,30]
[313701215,1707595857854,-525.58,0.00038356,30]
[313701216,1707595857864,-205.94280457,0.00038356,30]
[313701217,1707595857875,-506.86908688,0.00038356,30]
[313701218,1707595857884,-500.0,0.00038356,30]
[313701219,1707595857894,-500.0,0.00038356,30]
[313701220,1707595857908,-500.0,0.00038356,30]
[313701221,1707595857917,-573.72461784,0.00038356,30]
[313701222,1707595857926,-509.47503095,0.00038356,30]
[313701223,1707595857935,-500.0,0.00038356,30]
[313701224,1707595857945,-500.0,0.00038356,30]
[313701225,1707595857954,-500.0,0.00038356,7]
[313701226,1707595857963,-500.0,0.00038356,30]
[313701227,1707595857972,-649.09340516,0.00038356,30]
[313701228,1707595857982,-500.0,0.00038356,30]
[313701229,1707595857991,-514.5,0.00038356,30]
[313701230,1707595857999,-286.35,0.00038356,30]
[313701231,1707595858009,-500.0,0.00038356,30]
[313701232,1707595858017,-500.0,0.00038356,30]
[313701233,1707595858027,-500.0,0.00038356,30]
[313701234,1707595858036,-500.0,0.00038356,30]
[313701235,1707595858044,-500.0,0.00038356,30]
[313701236,1707595858054,-250.0,0.00038356,30]
[313701237,1707595858063,-513.7596338,0.00038356,30]
[313701238,1707595858072,-514.42833197,0.00038356,30]
[313701239,1707595858081,-500.0,0.00038356,30]
[313701240,1707595858090,-500.0,0.00038356,30]
[313701241,1707595858099,-500.0,0.00038356,30]
[313701242,1707595858108,-500.0,0.00038356,30]
[313701243,1707595858117,-500.0,0.00038356,30]
[313701244,1707595858126,-500.0,0.00038356,30]
[313701245,1707595858137,-500.0,0.00038356,30]
[313701246,1707595858145,-500.0,0.00038356,30]
[313701247,1707595858155,-500.0,0.00038356,30]
[313701248,1707595858166,-500.0,0.00038356,30]
[313701249,1707595858176,-500.0,0.00038356,30]
[313701250,1707595858187,-500.0,0.00038356,30]
[313701251,1707595858196,-500.0,0.00038356,30]
[313701252,1707595858205,-476.60551248,0.00038356,30]
[313701253,1707595858215,-500.0,0.00038356,30]
[313701254,1707595858224,-179.00431034,0.00038356,30]
[313701255,1707595858233,-297.30341946,0.00038356,30]
[313701256,1707595858242,-517.97354135,0.00038356,30]
[313701257,1707595858251,-571.293209,0.00038356,30]
[313701258,1707595858261,-500.0,0.00038356,30]
[313701259,1707595858270,-500.0,0.00038356,30]
[313701260,1707595858279,-500.0,0.00038356,30]
[313701261,1707595858288,-500.0,0.00038356,30]
[313701262,1707595858297,-500.0,0.00038356,30]
[313701263,1707595858306,-1000.0,0.00038356,2]
[313701264,1707595858315,-500.0,0.00038356,30]
[313701265,1707595858324,-500.0,0.00038356,30]
[313701266,1707595858333,-500.0,0.00038356,30]
[313701267,1707595858342,-500.0,0.00038356,30]
[313701268,1707595858351,-500.0,0.00038356,30]
[313701269,1707595858361,-570.50515033,0.00038356,30]
[313701270,1707595858369,-500.0,0.00038356,30]
[313701271,1707595858380,-421.47470251,0.00038356,30]
[313701272,1707595858390,-500.0,0.00038356,30]
[313701273,1707595858399,-500.0,0.00038356,30]
[313701274,1707595858408,-500.0,0.00038356,30]
[313701275,1707595858417,-500.0,0.00038356,30]
[313701276,1707595858426,-500.0,0.00038356,30]
[313701277,1707595858435,-500.0,0.00038356,30]
[313701278,1707595858444,-611.01,0.00038356,30]
[313701279,1707595858453,-500.0,0.00038356,30]
[313701280,1707595858462,-500.0,0.00038356,30]
[313701281,1707595858471,-500.0,0.00038356,30]
[313701282,1707595858481,-500.0,0.00038356,2]
[313701283,1707595858490,-500.0,0.00038356,30]
[313701284,1707595858499,-500.0,0.00038356,30]
[313701285,1707595858508,-500.0,0.00038356,30]
[313701286,1707595858518,-500.0,0.00038356,30]
[313701287,1707595858527,-1000.0,0.00038356,7]
[313701288,1707595858537,-500.0,0.00038356,30]
[313701289,1707595858547,-652.52,0.00038356,30]
[313701290,1707595858558,-587.19745117,0.00038356,30]
[313701291,1707595858568,-509.02244895,0.00038356,30]
[313701292,1707595858579,-500.0,0.00038356,30]
[313701293,1707595858589,-518.7,0.00038356,30]
[313701294,1707595858600,-500.0,0.00038356,30]
[313701295,1707595858611,-423.07862826,0.00038356,30]
[313701296,1707595858622,-500.0,0.00038356,30]
[313701297,1707595858638,-581.96,0.00038356,30]
[313701298,1707595858650,-803.44,0.00038356,2]
[313701299,1707595858663,-500.0,0.00038356,30]
[313701300,1707595858674,-500.0,0.00038356,30]
[313701301,1707595858685,-500.0,0.00038356,30]
[313701302,1707595858696,-517.57,0.00038356,30]
[313701303,1707595858707,-517.68421135,0.00038356,30]
[313701304,1707595858718,-500.0,0.00038356,30]
[313701305,1707595858728,-509.78279966,0.00038356,30]
[313701306,1707595858738,-204.93333924,0.00038356,30]
[313701307,1707595858748,-500.0,0.00038356,30]
[313701308,1707595858760,-500.0,0.00038356,30]
[313701309,1707595858770,-500.0,0.00038356,30]
[313701310,1707595858781,-500.0,0.00038356,30]
[313701311,1707595858791,-500.0,0.00038356,30]
[313701312,1707595858801,-763.48,0.00038356,30]
[313701313,1707595858812,-500.0,0.00038356,30]
[313701314,1707595858822,-500.0,0.00038356,30]
[313701315,1707595858832,-500.0,0.00038356,30]
[313701316,1707595858842,-503.57369527,0.00038356,30]
[313701317,1707595858852,-500.0,0.00038356,30]
[313701318,1707595858863,-500.0,0.00038356,30]
[313701319,1707595858873,-500.0,0.00038356,30]
[313701320,1707595858887,-500.0,0.00038356,30]
[313701321,1707595858898,-500.0,0.00038356,30]
[313701322,1707595858909,-500.0,0.00038356,30]
[313701323,1707595858919,-500.0,0.00038356,30]
[313701324,1707595858928,-500.0,0.00038356,30]
[313701325,1707595858938,-527.2,0.00038356,30]
[313701326,1707595858948,-481.67540424,0.00038356,30]
[313701327,1707595858957,-627.72358098,0.00038356,30]
[313701328,1707595858967,-500.0,0.00038356,30]
[313701329,1707595858976,-500.0,0.00038356,30]
[313701330,1707595858985,-855.61,0.00038356,30]
[313701331,1707595858994,-500.0,0.00038356,30]
[313701332,1707595859003,-705.45,0.00038356,30]
[313701333,1707595859013,-500.0,0.00038356,30]
[313701334,1707595859022,-500.0,0.00038356,30]
[313701335,1707595859031,-500.0,0.00038356,30]
[313701336,1707595859040,-500.0,0.00038356,30]
[313701337,1707595859049,-500.0,0.00038356,30]
[313701338,1707595859059,-516.73410525,0.00038356,30]
[313701339,1707595859069,-500.0,0.00038356,30]
[313701340,1707595859077,-501.86208133,0.00038356,30]
[313701341,1707595859086,-450.48955703,0.00038356,30]
[313701342,1707595859095,-506.14048771,0.00038356,30]
[313701343,1707595859104,-514.12102228,0.00038356,30]
[313701344,1707595859113,-505.63509471,0.00038356,30]
[313701345,1707595859122,-615.02,0.00038356,30]
[313701346,1707595859132,-500.0,0.00038356,30]
[313701347,1707595859141,-500.0,0.00038356,30]
[313701348,1707595859150,-865.41,0.00038356,30]
[313701349,1707595859159,-500.0,0.00038356,30]
[313701350,1707595859168,-500.0,0.00038356,30]
[313701351,1707595859177,-500.0,0.00038356,30]
[313701352,1707595859186,-515.13985855,0.00038356,30]
[313701353,1707595859195,-500.0,0.00038356,30]
[313701354,1707595859205,-500.0,0.00038356,30]
[313701355,1707595859214,-500.0,0.00038356,30]
[313701356,1707595859223,-500.0,0.00038356,30]
[313701357,1707595859233,-500.0,0.00038356,30]
[313701358,1707595859242,-500.0,0.00038356,30]
[313701359,1707595859251,-614.60702086,0.00038356,30]
[313701360,1707595859260,-500.0,0.00038356,30]
[313701361,1707595859270,-500.0,0.00038356,30]
[313701362,1707595859281,-500.0,0.00038356,30]
[313701363,1707595859290,-969.91,0.00038356,30]
[313701364,1707595859299,-428.39311502,0.00038356,30]
[313701365,1707595859310,-500.0,0.00038356,30]
[313701366,1707595859319,-541.53,0.00038356,30]
[313701367,1707595859329,-500.0,0.00038356,30]
[313701368,1707595859338,-500.0,0.00038356,30]
[313701369,1707595859347,-507.56,0.00038356,30]
[313701370,1707595859357,-500.0,0.00038356,30]
[313701371,1707595859366,-789.07,0.00038356,30]
[313701372,1707595859376,-639.84,0.00038356,30]
[313701373,1707595859388,-500.0,0.00038356,30]
[313701374,1707595859397,-500.0,0.00038356,30]
[313701375,1707595859405,-906.21,0.00038356,30]
[313701376,1707595859415,-998.56,0.00038356,30]
[313701377,1707595859424,-500.0,0.00038356,30]
[313701378,1707595859433,-517.6,0.00038356,30]
[313701379,1707595859443,-500.0,0.00038356,30]
[313701380,1707595859452,-495.94421057,0.00038356,30]
[313701381,1707595859462,-893.98,0.00038356,30]
[313701382,1707595859471,-500.0,0.00038356,30]
[313701383,1707595859480,-1054.73,0.00038356,30]
[313701384,1707595859489,-500.0,0.00038356,2]
[313701385,1707595859498,-500.0,0.00038356,30]
[313701386,1707595859507,-500.0,0.00038356,30]
[313701387,1707595859516,-500.0,0.00038356,30]
[313701388,1707595859525,-454.72388634,0.00038356,30]
[313701389,1707595859534,-509.01010957,0.00038356,30]
[313701390,1707595859543,-500.0,0.00038356,30]
[313701391,1707595859552,-638.88,0.00038356,30]
[313701392,1707595859561,-500.0,0.00038356,30]
[313701393,1707595859570,-513.14686667,0.00038356,30]
[313701394,1707595859579,-500.0,0.00038356,30]
[313701395,1707595859588,-500.0,0.00038356,30]
[313701396,1707595859598,-540.63,0.00038356,30]
[313701397,1707595859607,-525.64,0.00038356,30]
[313701398,1707595859617,-503.58098672,0.00038356,30]
[313701399,1707595859626,-576.04,0.00038356,30]
[313701400,1707595859636,-500.0,0.00038356,30]
[313701401,1707595859645,-500.0,0.00038356,30]
[313701402,1707595859654,-500.0,0.00038356,30]
[313701403,1707595859663,-540.65,0.00038356,30]
[313701404,1707595859673,-500.0,0.00038356,30]
[313701405,1707595859682,-1004.11,0.00038356,30]
[313701406,1707595859691,-539.56,0.00038356,30]
[313701407,1707595859700,-500.0,0.00038356,30]
[313701408,1707595859708,-500.0,0.00038356,30]
[313701409,1707595859717,-500.0,0.00038356,30]
[313701410,1707595859726,-500.0,0.00038356,30]
[313701411,1707595859735,-500.0,0.00038356,30]
[313701412,1707595859744,-500.0,0.00038356,30]
[313701413,1707595859754,-500.0,0.00038356,30]
[313701414,1707595859764,-706.28809454,0.00038356,30]
[313701415,1707595859774,-500.0,0.00038356,30]
[313701416,1707595859783,-500.0,0.00038356,30]
[313701417,1707595859791,-500.0,0.00038356,30]
[313701418,1707595859801,-500.0,0.00038356,30]
[313701419,1707595859810,-154.67846374,0.00038356,30]
[313701420,1707595859819,-509.63,0.00038356,30]
[313701421,1707595859828,-500.0,0.00038356,30]
[313701422,1707595859837,-500.0,0.00038356,30]
[313701423,1707595859846,-500.0,0.00038356,30]
[313701424,1707595859855,-500.0,0.00038356,30]
[313701425,1707595859865,-500.0,0.00038356,30]
[313701426,1707595859874,-500.0,0.00038356,30]
[313701427,1707595859885,-1453.04,0.00038356,30]
[313701428,1707595859894,-800.64,0.00038356,30]
[313701429,1707595859903,-500.0,0.00038356,30]
[313701430,1707595859916,-500.0,0.00038356,30]
[313701431,1707595859925,-500.0,0.00038356,30]
[313701432,1707595859934,-1029.84,0.00038356,30]
[313701433,1707595859944,-506.38632214,0.00038356,30]
[313701434,1707595859953,-587.82,0.00038356,30]
[313701435,1707595859962,-500.0,0.00038356,30]
[313701436,1707595859971,-500.0,0.00038356,30]
[313701437,1707595859982,-500.0,0.00038356,30]
[313701438,1707595859992,-861.1,0.00038356,30]
[313701439,1707595860003,-500.0,0.00038356,30]
[313701440,1707595860013,-500.0,0.00038356,30]
[313701441,1707595860202,-672.89,0.00038356,30]
[313701442,1707595860211,-500.0,0.00038356,30]
[313701443,1707595860221,-561.48,0.00038356,30]
[313701444,1707595860230,-1094.29,0.00038356,30]
[313701445,1707595860239,-500.0,0.00038356,30]
[313701446,1707595860249,-560.62,0.00038356,30]
[313701447,1707595860258,-500.0,0.00038356,30]
[313701448,1707595860268,-1079.0,0.00038356,30]
[313701449,1707595860277,-500.0,0.00038356,30]
[313701450,1707595860286,-512.01361499,0.00038356,30]
[313701451,1707595860295,-500.0,0.00038356,30]
[313701452,1707595860304,-500.0,0.00038356,30]
[313701453,1707595860313,-500.0,0.00038356,30]
[313701454,1707595860323,-500.0,0.00038356,30]
[313701455,1707595860332,-507.88136022,0.00038356,30]
[313701456,1707595860342,-863.96,0.00038356,30]
[313701457,1707595860351,-500.0,0.00038356,30]
[313701458,1707595860360,-706.87,0.00038356,30]
[313701459,1707595860369,-500.0,0.00038356,30]
[313701460,1707595860379,-500.0,0.00038356,30]
[313701461,1707595860389,-500.0,0.00038356,30]
[313701462,1707595860398,-500.0,0.00038356,30]
[313701463,1707595860408,-500.0,0.00038356,30]
[313701464,1707595860417,-500.0,0.00038356,30]
[313701465,1707595860426,-757.53,0.00038356,30]
[313701466,1707595860435,-500.0,0.00038356,30]
[313701467,1707595860444,-500.0,0.00038356,30]
[313701468,1707595860453,-564.52,0.00038356,30]
[313701469,1707595860463,-500.0,0.00038356,30]
[313701470,1707595860472,-500.0,0.00038356,30]
[313701471,1707595860481,-500.0,0.00038356,30]
[313701472,1707595860490,-500.0,0.00038356,30]
[313701473,1707595860500,-680.11,0.00038356,30]
[313701474,1707595860509,-500.0,0.00038356,30]
[313701475,1707595860518,-500.0,0.00038356,30]
[313701476,1707595860527,-500.0,0.00038356,30]
[313701477,1707595860536,-500.0,0.00038356,30]
[313701478,1707595860546,-756.2,0.00038356,30]
[313701479,1707595860555,-1173.55,0.00038356,30]
[313701480,1707595860564,-500.0,0.00038356,30]
[313701481,1707595860575,-518.58,0.00038356,30]
[313701482,1707595860585,-500.0,0.00038356,30]
[313701483,1707595860594,-500.0,0.00038356,30]
[313701484,1707595860603,-500.0,0.00038356,30]
[313701485,1707595860613,-1077.92,0.00038356,30]
[313701486,1707595860622,-500.0,0.00038356,30]
[313701487,1707595860634,-500.0,0.00038356,30]
[313701488,1707595860643,-500.0,0.00038356,30]
[313701489,1707595860653,-500.0,0.00038356,30]
[313701490,1707595860663,-500.0,0.00038356,30]
[313701491,1707595860673,-500.0,0.00038356,30]
[313701492,1707595860682,-500.0,0.00038356,30]
[313701493,1707595860692,-500.0,0.00038356,30]
[313701494,1707595860701,-500.0,0.00038356,30]
[313701495,1707595860711,-507.43476311,0.00038356,30]
[313701496,1707595860720,-1126.72,0.00038356,30]
[313701497,1707595860729,-500.0,0.00038356,30]
[313701498,1707595860739,-500.0,0.00038356,30]
[313701499,1707595860748,-500.0,0.00038356,30]
[313701500,1707595860757,-759.06,0.00038356,30]
[313701501,1707595860767,-500.0,0.00038356,30]
[313701502,1707595860777,-500.0,0.00038356,30]
[313701503,1707595860786,-500.0,0.00038356,30]
[313701504,1707595860795,-630.87,0.00038356,30]
[313701505,1707595860804,-500.0,0.00038356,30]
[313701506,1707595860813,-1172.12,0.00038356,30]
[313701507,1707595860822,-614.92,0.00038356,30]
[313701508,1707595860831,-500.0,0.00038356,30]
[313701509,1707595860840,-1128.55,0.00038356,30]
[313701510,1707595860849,-500.0,0.00038356,30]
[313701511,1707595860858,-500.0,0.00038356,30]
[313701512,1707595860867,-507.90036444,0.00038356,30]
[313701513,1707595860876,-500.0,0.00038356,30]
[313701514,1707595860886,-500.0,0.00038356,30]
[313701515,1707595860896,-500.0,0.00038356,30]
[313701516,1707595860907,-500.0,0.00038356,30]
[313701517,1707595860917,-500.0,0.00038356,30]
[313701518,1707595860926,-500.0,0.00038356,30]
[313701519,1707595860934,-415.55942046,0.00038356,30]
[313701520,1707595860945,-1130.44,0.00038356,30]
[313701521,1707595860954,-500.0,0.00038356,30]
[313701522,1707595860963,-500.0,0.00038356,30]
[313701523,1707595860972,-662.18,0.00038356,30]
[313701524,1707595860982,-500.0,0.00038356,30]
[313701525,1707595860992,-500.0,0.00038356,30]
[313701526,1707595861002,-500.0,0.00038356,30]
[313701527,1707595861011,-500.0,0.00038356,7]
[313701528,1707595861020,-500.0,0.00038356,30]
[313701529,1707595861029,-500.0,0.00038356,30]
[313701530,1707595861037,-500.0,0.00038356,30]
[313701531,1707595861046,-573.6,0.00038356,30]
[313701532,1707595861055,-500.0,0.00038356,30]
[313701533,1707595861064,-500.0,0.00038356,30]
[313701534,1707595861073,-656.7,0.00038356,30]
[313701535,1707595861082,-500.0,0.00038356,30]
[313701536,1707595861091,-500.0,0.00038356,30]
[313701537,1707595861100,-500.0,0.00038356,30]
[313701538,1707595861109,-1086.47,0.00038356,30]
[313701539,1707595861118,-500.0,0.00038356,30]
[313701540,1707595861128,-500.0,0.00038356,30]
[313701541,1707595861138,-500.0,0.00038356,30]
[313701542,1707595861147,-500.0,0.00038356,30]
[313701543,1707595861157,-500.0,0.00038356,30]
[313701544,1707595861166,-500.0,0.00038356,30]
[313701545,1707595861175,-500.0,0.00038356,30]
[313701546,1707595861184,-500.0,0.00038356,30]
[313701547,1707595861194,-500.0,0.00038356,30]
[313701548,1707595861203,-500.0,0.00038356,30]
[313701549,1707595861212,-500.0,0.00038356,30]
[313701550,1707595861221,-500.0,0.00038356,30]
[313701551,1707595861231,-500.0,0.00038356,30]
[313701552,1707595861239,-500.0,0.00038356,30]
[313701553,1707595861249,-500.0,0.00038356,30]
[313701554,1707595861258,-500.0,0.00038356,30]
[313701555,1707595861266,-500.0,0.00038356,30]
[313701556,1707595861276,-500.0,0.00038356,30]
[313701557,1707595861285,-505.42674171,0.00038356,30]
[313701558,1707595861294,-509.48866044,0.00038356,30]
[313701559,1707595861303,-500.0,0.00038356,30]
[313701560,1707595861313,-500.0,0.00038356,30]
[313701561,1707595861322,-500.0,0.00038356,30]
[313701562,1707595861331,-638.48,0.00038356,30]
[313701563,1707595861341,-712.05,0.00038356,30]
[313701564,1707595861351,-586.0,0.00038356,30]
[313701565,1707595861361,-500.0,0.00038356,30]
[313701566,1707595861370,-500.0,0.00038356,30]
[313701567,1707595861380,-500.00277693,0.00038356,30]
[313701568,1707595861390,-500.0,0.00038356,30]
[313701569,1707595861399,-500.0,0.00038356,30]
[313701570,1707595861408,-500.0,0.00038356,30]
[313701571,1707595861417,-500.0,0.00038356,30]
[313701572,1707595861426,-500.0,0.00038356,30]
[313701573,1707595861435,-500.0,0.00038356,30]
[313701574,1707595861445,-193.35864735,0.00038356,30]
[313701575,1707595861454,-525.06,0.00038356,30]
[313701576,1707595861463,-500.0,0.00038356,30]
[313701577,1707595861471,-543.32,0.00038356,30]
[313701578,1707595861480,-500.0,0.00038356,30]
[313701579,1707595861489,-500.0,0.00038356,30]
[313701580,1707595861498,-1084.73,0.00038356,30]
[313701581,1707595861507,-500.0,0.00038356,30]
[313701582,1707595861516,-500.0,0.00038356,30]
[313701583,1707595861525,-500.0,0.00038356,30]
[313701584,1707595861533,-458.78455956,0.00038356,30]
[313701585,1707595861542,-500.0,0.00038356,30]
[313701586,1707595861551,-500.0,0.00038356,30]
[313701587,1707595861560,-516.71642263,0.00038356,30]
[313701588,1707595861569,-504.79707469,0.00038356,30]
[313701589,1707595861578,-500.0,0.00038356,30]
[313701590,1707595861586,-500.0,0.00038356,30]
[313701591,1707595861595,-500.0,0.00038356,30]
[313701592,1707595861605,-500.0,0.00038356,30]
[313701593,1707595861614,-500.0,0.00038356,30]
[313701594,1707595861623,-529.49,0.00038356,30]
[313701595,1707595861632,-507.56428303,0.00038356,30]
[313701596,1707595861641,-500.0,0.00038356,30]
[313701597,1707595861650,-500.0,0.00038356,14]
[313701598,1707595861660,-511.91969279,0.00038356,30]
[313701599,1707595861669,-500.0,0.00038356,30]
[313701600,1707595861678,-500.0,0.00038356,30]
[313701601,1707595861688,-500.0,0.00038356,30]
[313701602,1707595861698,-500.0,0.00038356,30]
[313701603,1707595861707,-500.0,0.00038356,30]
[313701604,1707595861717,-500.0,0.00038356,30]
[313701605,1707595861728,-500.0,0.00038356,30]
[313701606,1707595861738,-490.46106567,0.00038356,30]
[313701607,1707595861748,-502.73477279,0.00038356,30]
[313701608,1707595861759,-500.0,0.00038356,30]
[313701609,1707595861769,-500.0,0.00038356,30]
[313701610,1707595861779,-500.0,0.00038356,30]
[313701611,1707595861789,-500.0,0.00038356,30]
[313701612,1707595861799,-500.0,0.00038356,30]
[313701613,1707595861809,-837.08,0.00038356,30]
[313701614,1707595861818,-500.0,0.00038356,30]
[313701615,1707595861827,-500.0,0.00038356,30]
[313701616,1707595861836,-500.0,0.00038356,30]
[313701617,1707595861846,-773.57,0.00038356,30]
[313701618,1707595861855,-503.32012862,0.00038356,30]
[313701619,1707595861865,-310.48297165,0.00038356,30]
[313701620,1707595861875,-500.0,0.00038356,30]
[313701621,1707595861886,-500.0,0.00038356,30]
[313701622,1707595861897,-500.0,0.00038356,30]
[313701623,1707595861907,-692.82,0.00038356,2]
[313701624,1707595861919,-1109.55,0.00038356,30]
[313701625,1707595861928,-500.0,0.00038356,30]
[313701626,1707595861937,-551.42,0.00038356,30]
[313701627,1707595861946,-500.0,0.00038356,30]
[313701628,1707595861956,-500.0,0.00038356,30]
[313701629,1707595861966,-500.0,0.00038356,30]
[313701630,1707595861975,-500.0,0.00038356,30]
[313701631,1707595861984,-500.0,0.00038356,30]
[313701632,1707595861994,-500.0,0.00038356,30]